[Event "EYCC O18-ch 2024"]
[Site "Prague"]
[Date "2024.08.30"]
[Round "8.2"]
[White "Razafindratsima, Timothe"]
[Black "Sokolovsky, Yahli"]
[Result "1-0"]
[ECO "C84"]
[WhiteElo "2457"]
[BlackElo "2522"]
[Annotator "TA"]
[PlyCount "161"]
[EventDate "2024.08.19"]
[EventType "swiss"]
[EventCountry "CZE"]
[SourceTitle "playchess.com"]
[Source "ChessBase"]
[SourceQuality "1"]
[TimeControl "5400+30"]

{[%evp 15,161,10,26,11,14,7,18,18,16,14,22,25,22,26,23,18,26,21,22,-24,-12,-27,0,-35,47,37,42,36,36,28,27,22,19,0,0,0,0,0,0,0,117,-310,-315,-298,-154,-152,-161,-150,-39,-21,0,8,70,71,183,185,245,194,462,227,275,193,213,203,199,195,289,217,304,272,262,265,359,281,396,411,408,172,186,159,181,138,135,0,157,119,156,89,90,89,89,89,108,106,109,89,168,147,168,168,168,182,213,213,213,213,213,213,220,220,308,213,213,213,213,213,214,213,221,221,220,213,214,0,232,213,213,213,248,248,308,304,289,260,256,252,255,252,285,278,373,373,347,279,645,614,1064,1016]} 1. e4 {[%emt 0:00:02]} e5 {[%emt 0:00:06]} 2. Nf3 {[%emt 0:00:11]} Nc6 {[%emt 0:00:02]} 3. Bb5 {[%emt 0:00:15]} a6 {[%emt 0:00:06]} 4. Ba4 {[%emt 0:00:08]} Nf6 {[%emt 0:00:04]} 5. O-O {[%emt 0:00:20]} Be7 {[%emt 0:00:07]} 6. d3 {[%emt 0:00:32]} b5 {[%emt 0:00:48]} 7. Bb3 {[%emt 0:00:06]} d6 {[%emt 0:00:07]} 8. c3 {[%emt 0:00:17]} O-O {[%emt 0:00:30]} 9. Bc2 {[%emt 0:00:15]} Re8 {[%emt 0:07:49]} 10. Nbd2 {[%emt 0:01:02][%cal Bb1d2,Bd2f1,Bf1g3][%mdl 32]} Bf8 {[%emt 0:00:47]} 11. Re1 {[%emt 0:01:44] The position is equal.} Ne7 {[%emt 0:03:58]} 12. a4 {[%emt 0:02:12]} Bd7 {[%emt 0:00:41]} 13. d4 {[%emt 0:12:23]} Ng6 {[%emt 0:00:13]} 14. Nf1 {[%emt 0:00:19]} h6 {[%emt 0:02:10]} 15. Ng3 {[%emt 0:02:45]} Rb8 {[%emt 0:14:21]} 16. Be3 {[%emt 0:14:32]} c5 {[%emt 0:02:21]} 17. Qd3 {[%emt 0:15:09]} (17. d5 {was preferrable.}) 17... Bg4 {[%emt 0:13:42]} 18. Nd2 {[%emt 0:01:49]} Bd7 {[%emt 0:13:09]} 19. h3 {[%emt 0:08:56]} c4 {[%emt 0:02:03]} (19... cxd4 $15 20. cxd4 d5) 20. Qf1 $14 {[%emt 0:02:05]} d5 {[%emt 0:03:15]} 21. axb5 {[%emt 0:05:41]} Bxb5 {[%emt 0:11:47]} 22. f4 {[%emt 0:08:31]} exd4 {[%emt 0:05:52]} 23. Bxd4 {[%emt 0:00:07]} dxe4 {[%emt 0:00:10]} 24. Ndxe4 {[%emt 0:02:14]} Nd5 {[%emt 0:03:21]} 25. Nh5 {[%emt 0:04:30] Rad1 would now be deadly.} Qc7 $1 {[%emt 0:02:49][%cal Rg6f4]} 26. Qf3 {[%emt 0:05:44]} Bc6 {[%emt 0:03:45]} (26... Ndxf4 $2 27. Nef6+ Kh8 28. Nxe8 Bxe8 29. Rxa6 $18) 27. f5 {[%emt 0:07:12]} Rxb2 {[%emt 0:07:38]} (27... Ngf4 $1 $11 {remains equal.} 28. Rxa6 Nxh5 29. Qxh5 Rxb2) 28. Rac1 $2 {[%emt 0:02:26][%mdl 8192] The board is on fire.} (28. fxg6 $16 {is necessary to keep the advantage.} Rxc2 29. Nef6+ Nxf6 30. Nxf6+ gxf6 31. gxf7+ Qxf7 32. Qxc6 Rxe1+ 33. Rxe1) 28... Ngf4 $19 {[%emt 0:01:01]} 29. Nhg3 {[%emt 0:01:32] [#]} Nd3 {[%emt 0:01:42]} 30. Bxd3 $17 {[%emt 0:00:09]} cxd3 {[%emt 0:00:01]} 31. c4 {[%emt 0:00:00][%cal Oc4d5]} d2 {[%emt 0:00:46]} (31... Nf4 $1 $17 32. Bxb2 d2) 32. cxd5 $15 {[%emt 0:01:49]} dxe1=Q+ {[%emt 0:00:36]} (32... Rc2 $5 33. Nxd2 Bxd5 34. Qxd5 Rxc1 35. Rxc1 Qxc1+ 36. Ngf1 Qc7 $17) 33. Rxe1 {[%emt 0:00:00]} Qa5 {[%emt 0:00:35]} (33... Rd2 $11 34. dxc6 (34. Nxd2 $2 Rxe1+ 35. Kf2 Ba4 $19) 34... Rxd4 35. Nf6+ gxf6 36. Rxe8 Rd8 (36... Rc4 $2 37. Qa3 $18)) 34. Rd1 $1 $14 {[%emt 0:00:44]} Rb3 {[%emt 0:00:36]} 35. Qxb3 $18 {[%emt 0:00:36]} Bxd5 {[%emt 0:00:19]} (35... Qxd5 {is a better defense.} 36. Qxd5 Bxd5) 36. Qd3 {[%emt 0:00:24][%cal Oe4f6]} Qc7 $2 {[%emt 0:00:39]} (36... Bxe4 37. Nxe4 Rd8) 37. Bf2 {[%emt 0:01:02]} (37. Nf6+ $142 gxf6 38. Nh5 (38. Bxf6 Bc5+ 39. Kh1 Bc6 $11)) 37... Bc6 {[%emt 0:00:25]} 38. Re1 {[%emt 0:00:53]} Bb4 {[%emt 0:00:19]} 39. Rb1 {[%emt 0:00:08]} a5 {[%emt 0:00:07] [#]} 40. Qc4 $1 {[%emt 0:00:18] And now Rc1 would win.} Qd7 {[%emt 0:00:12]} (40... Rc8 $142 41. Rd1 Bf8) 41. Nc5 {[%emt 0:00:53]} Qd8 {[%emt 0:00:51]} (41... Bxc5 $142 42. Qxc5 a4) 42. Nd3 {[%emt 0:00:31]} Bd5 {[%emt 0:00:00]} 43. Qg4 {[%emt 0:00:10]} Bc3 {[%emt 0:00:17]} 44. Nf4 {[%emt 0:00:10]} (44. Bd4 Bxd4+ 45. Qxd4 Ba2 46. Qxd8 Rxd8 $11) 44... Ba2 {[%emt 0:00:44]} (44... Ba8 $142 45. Rc1 Bb2) 45. Rd1 {[%emt 0:00:04]} Qg5 {[%emt 0:00:34]} 46. Qxg5 {[%emt 0:00:15]} (46. Qf3 $142) 46... hxg5 {[%emt 0:00:01]} 47. Nfe2 {[%emt 0:00:01]} Bb4 {[%emt 0:00:34]} 48. Nc1 {[%emt 0:00:59]} Bb1 {[%emt 0:00:32]} 49. Nce2 {[%emt 0:00:59]} (49. Rd4 $16) 49... Bc2 $2 {[%emt 0:00:23]} ({Better is} 49... Ba2 $1 $11) 50. Rd4 {[%emt 0:00:42]} Rb8 {[%emt 0:00:47]} 51. Ne4 {[%emt 0:00:53]} (51. Rd5 $142) 51... f6 $16 {[%emt 0:00:01]} 52. Kh2 {[%emt 0:01:00]} a4 {[%emt 0:01:13]} 53. Bg3 {[%emt 0:00:01]} Rb6 {[%emt 0:00:22]} 54. Bc7 {[%emt 0:00:49]} (54. Rd8+ Kh7 55. Nd6 Bb3 $18 (55... a3 $2 56. Nd4 $18)) 54... Rb7 {[%emt 0:00:09][%cal Oa4a3]} 55. Bd6 {[%emt 0:00:25]} Ba5 {[%emt 0:01:34]} (55... Bxe4 $16 56. Rxb4 (56. Bxb4 Bxf5 57. Ba3 Bd7 $16) 56... Rxb4 57. Bxb4 Bxf5) 56. N4c3 {[%emt 0:00:59]} a3 {[%emt 0:00:31]} 57. Bxa3 {[%emt 0:00:28]} Rb3 {[%emt 0:00:19] [#]} 58. Bd6 {[%emt 0:00:10]} Bxf5 {[%emt 0:01:05]} 59. Rd5 {[%emt 0:00:23]} Bxc3 {[%emt 0:00:21]} 60. Rxf5 {[%emt 0:00:08] Rf3 is the strong threat.} (60. Nxc3 $6 Bxh3 61. Ne4 Bg4 $16) 60... Bd2 {[%emt 0:00:10]} 61. Rd5 {[%emt 0:00:19]} Rb2 {[%emt 0:00:12]} 62. Nd4 {[%emt 0:00:40]} Kf7 {[%emt 0:00:01]} 63. Nf3 {[%emt 0:00:12]} Be3 {[%emt 0:00:13]} 64. Rd3 {[%emt 0:00:14]} Bb6 {[%emt 0:00:08]} 65. Rd2 {[%emt 0:01:06]} Rb1 {[%emt 0:00:09]} 66. Rc2 {[%emt 0:00:12]} Ke6 {[%emt 0:00:15]} 67. Bc7 {[%emt 0:00:05]} Ba7 {[%emt 0:00:10]} 68. Ra2 {[%emt 0:00:09]} Bc5 {[%emt 0:00:22]} 69. Rc2 $2 {[%emt 0:00:26]} (69. g4 $18) 69... Kd5 $2 {[%emt 0:00:15]} (69... Ba7 $11 {and Black has nothing to worry.} 70. Bg3 Rb7) 70. Bg3 {[%emt 0:00:26]} Rb4 {[%emt 0:00:56]} 71. Bf2 {[%emt 0:00:28]} Bd6+ {[%emt 0:00:01]} 72. g3 {[%emt 0:00:06][%cal Bg2g3,Bg3g4][%mdl 32] Hoping for Rd2+.} Ke4 {[%emt 0:02:46]} 73. Kg2 {[%emt 0:00:10]} Kf5 {[%emt 0:00:04]} 74. Nd4+ {[%emt 0:00:37]} Kg6 {[%emt 0:00:06]} 75. g4 {[%emt 0:00:19]} Kf7 {[%emt 0:00:15]} 76. Nf5 {[%emt 0:00:18]} Bf4 {[%emt 0:00:21]} 77. Ra2 {[%emt 0:00:42] Black must now prevent Ra7+.} g6 {[%emt 0:00:27]} 78. Ra7+ {[%emt 0:00:29]} Ke6 {[%emt 0:00:01]} 79. Ra6+ {[%emt 0:00:11]} Kd7 $2 {[%emt 0:00:44]} (79... Kf7 80. Ra7+ Ke6 81. Nd4+ Kd6 82. Ra6+ Kd5) 80. Ne3 $18 {[%emt 0:01:36]} f5 {[%emt 0:02:42]} 81. Nd5 {[%emt 0:01:02] Weighted Error Value: White=0.37/Black=0.42.  Loses game:     	White=1     	Black=1      Missed win:     	White=1     	---        Mistake:       	White=5     	Black=14     Inaccurate:     	White=2     	Black=7      OK:         	White=32    	Black=23     Best:        	White=6     	Black=4      Strong:       	White=1     	Black=1} ({Weaker is} 81. Rxg6 Bxe3 82. Rg7+ (82. Bxe3 fxg4 83. hxg4 Rxg4+ 84. Kf1 Ke7 $16) (82. gxf5 Rb2 $11) 82... Ke6 $14) 1-0

[Event "EYCC O18-ch 2024"]
[Site "Prague"]
[Date "2024.08.30"]
[Round "8.2"]
[White "Engin, Onur Cinar"]
[Black "Vergara Anton, Diego"]
[Result "1-0"]
[ECO "C02"]
[WhiteElo "2215"]
[BlackElo "2416"]
[Annotator "RC"]
[PlyCount "105"]
[EventDate "2024.08.19"]
[EventType "swiss"]
[EventCountry "CZE"]
[SourceTitle "playchess.com"]
[Source "ChessBase"]
[SourceQuality "1"]
[TimeControl "5400+30"]

1. e4 {[%emt 0:00:04]} e6 {[%emt 0:00:07]} 2. d4 {[%emt 0:00:03]} d5 {[%emt 0:00:04]} 3. e5 {[%emt 0:00:04]} c5 {[%emt 0:00:04]} 4. c3 {[%emt 0:00:04]} Nc6 {[%emt 0:00:04]} 5. Nf3 {[%emt 0:00:06]} Bd7 {[%emt 0:00:04]} 6. Be2 {[%emt 0:00:41]} Nge7 {[%emt 0:00:30]} 7. O-O {[%emt 0:00:11]} Nf5 {[%emt 0:00:19]} 8. dxc5 {[%emt 0:00:53]} a5 {[%emt 0:00:09]} 9. Bd3 {[%emt 0:03:06]} Bxc5 {[%emt 0:00:55]} 10. Bxf5 {[%emt 0:03:11]} exf5 {[%emt 0:00:02]} 11. Qxd5 {[%emt 0:03:06]} Qb6 {[%emt 0:00:07]} 12. Nbd2 {[%emt 0:07:18]} Be6 {[%emt 0:05:53]} 13. Qd3 {[%emt 0:00:10]} O-O {[%emt 0:03:08]} 14. Nb3 {[%emt 0:06:51]} Rad8 {[%emt 0:03:53]} 15. Qc2 {[%emt 0:14:50]} Bc4 {[%emt 0:02:28]} 16. Nxc5 {[%emt 0:07:24]} Bxf1 {[%emt 0:09:26]} 17. Bg5 {[%emt 0:11:35]} Qxc5 {[%emt 0:08:43]} 18. Bxd8 {[%emt 0:01:11]} Bxg2 {[%emt 0:01:24]} 19. Kxg2 {[%emt 0:00:52]} Rxd8 {[%emt 0:00:51]} 20. Qxf5 {[%emt 0:00:41]} Qd5 {[%emt 0:01:02]} 21. b3 {[%emt 0:06:56]} Ne7 {[%emt 0:07:07]} 22. Qg4 {[%emt 0:01:54]} Qc6 {[%emt 0:05:02]} 23. Re1 {[%emt 0:07:09]} Ng6 {[%emt 0:05:37]} 24. Re3 {[%emt 0:01:59]} Re8 {[%emt 0:09:08]} 25. Kg3 {[%emt 0:01:21]} Qc7 {[%emt 0:02:32]} 26. Kg2 {[%emt 0:01:36]} h6 {[%emt 0:01:56]} 27. Qe4 {[%emt 0:01:26]} Qd7 {[%emt 0:00:17]} 28. h3 {[%emt 0:04:09]} Re6 {[%emt 0:03:10]} 29. Qf5 {[%emt 0:01:53]} Qd1 {[%emt 0:01:58]} 30. Kh2 {[%emt 0:01:43]} Qf1 {[%emt 0:03:23]} 31. Nd2 {[%emt 0:00:38]} Qc1 {[%emt 0:00:27]} 32. Nf3 {[%emt 0:01:33]} Ne7 {[%emt 0:07:51]} 33. Qd3 {[%emt 0:00:31]} Rg6 {[%emt 0:01:27]} 34. Qd8+ {[%emt 0:01:31]} Kh7 {[%emt 0:00:05]} 35. Qd3 {[%emt 0:01:06]} Kg8 {[%emt 0:05:59]} 36. Qd8+ {[%emt 0:02:14]} Kh7 {[%emt 0:00:01]} 37. Qd3 {[%emt 0:00:05]} Kh8 {[%emt 0:03:41]} 38. Ne1 {[%emt 0:01:57]} Qb2 {[%emt 0:02:35]} 39. Re2 {[%emt 0:00:30]} Qc1 {[%emt 0:01:46]} 40. Qd8+ {[%emt 0:00:57]} Kh7 {[%emt 0:01:11]} 41. Qxe7 {[%emt 0:02:56]} Qf4+ {[%emt 0:01:30]} 42. Kh1 {[%emt 0:00:03]} Qf5 {[%emt 0:01:37]} 43. Qh4 {[%emt 0:00:29]} Rg5 {[%emt 0:01:04]} 44. Qe4 {[%emt 0:00:25]} g6 {[%emt 0:00:41]} 45. Qxf5 {[%emt 0:00:05]} Rxf5 {[%emt 0:00:03]} 46. Kg2 {[%emt 0:00:24]} g5 {[%emt 0:00:13]} 47. Nf3 {[%emt 0:00:15]} Rf4 {[%emt 0:00:08]} 48. Kg3 {[%emt 0:01:18]} a4 {[%emt 0:00:05]} 49. Rd2 {[%emt 0:00:04]} b5 {[%emt 0:00:21]} 50. Rd4 {[%emt 0:00:13]} axb3 {[%emt 0:00:04]} 51. axb3 {[%emt 0:00:04]} Rf5 {[%emt 0:00:13]} 52. Kg4 {[%emt 0:00:30]} Kg6 {[%emt 0:00:10]} 53. Rd6+ {[%emt 0:00:04]} 1-0

[Event "EYCC O18-ch 2024"]
[Site "Prague"]
[Date "2024.08.30"]
[Round "8.3"]
[White "Stalmach, Richard"]
[Black "Malek, Jan"]
[Result "1-0"]
[ECO "A13"]
[WhiteElo "2443"]
[BlackElo "2482"]
[Annotator "TA"]
[PlyCount "75"]
[EventDate "2024.08.19"]
[EventType "swiss"]
[EventCountry "CZE"]
[SourceTitle "playchess.com"]
[Source "ChessBase"]
[SourceQuality "1"]
[TimeControl "5400+30"]

{[%evp 9,75,34,27,22,47,49,42,41,34,29,41,41,55,18,15,20,22,17,19,22,17,14,23,0,119,94,80,92,102,99,102,103,100,27,13,0,-11,0,0,0,0,-2,273,263,269,270,286,285,302,309,302,302,394,412,420,406,413,385,490,491,1655,1603,29979,29973,29968,29958,6015,2532]} 1. Nf3 {[%emt 0:00:04]} d5 {[%emt 0:00:05]} 2. c4 {[%emt 0:00:04]} e6 {[%emt 0:00:05]} 3. g3 {[%emt 0:00:14]} dxc4 {[%emt 0:00:41]} 4. Qa4+ {[%emt 0:00:17]} Qd7 {[%emt 0:00:55]} 5. Qxc4 {[%emt 0:00:09]} c5 {[%emt 0:00:05]} 6. Bg2 {[%emt 0:01:30]} Nc6 {[%emt 0:00:07] Inhibits d4.} 7. O-O {[%emt 0:00:41][%cal Od2d4]} Nf6 {[%emt 0:00:06]} 8. Nc3 {[%emt 0:12:59][%cal Od2d4] White is slightly better.} Be7 {[%emt 0:00:06]} 9. Rd1 {[%emt 0:00:03]} e5 {[%emt 0:00:06]} 10. e3 {[%emt 0:06:31]} Qe6 {[%emt 0:00:29]} 11. Qf1 {[%emt 0:03:42]} O-O $1 {[%emt 0:00:23]} 12. d4 {[%emt 0:00:03]} cxd4 {[%emt 0:01:28]} 13. exd4 {[%emt 0:00:03]} Nxd4 {[%emt 0:00:49]} 14. Nxd4 {[%emt 0:00:07]} exd4 {[%emt 0:00:04]} 15. Rxd4 {[%emt 0:00:04]} Bc5 {[%emt 0:00:52]} (15... Qb6 {simplifies} 16. Rd2 Be6 17. Qb5 Qxb5 18. Nxb5 Bc5) 16. Rc4 {[%emt 0:11:44]} b6 {[%emt 0:13:30]} 17. b4 {[%emt 0:08:34][%cal Bb2b4,Bb4b5][%mdl 32]} (17. Bxa8 $6 Ba6 $11) 17... Ba6 {[%emt 0:01:15]} 18. b5 $1 {[%emt 0:00:05]} Rac8 {[%emt 0:01:00]} 19. Ra4 {[%emt 0:09:18]} (19. bxa6 $6 Bxf2+ 20. Qxf2 Qxc4 $11) (19. Bh3 $2 Qxc4 20. Qxc4 Bxf2+ 21. Kxf2 Rxc4 $19) 19... Ng4 {[%emt 0:25:50] [#]} 20. Ne4 {[%emt 0:01:02]} (20. Rxa6 $2 Bxf2+ 21. Kh1 Rxc3 $19) (20. Rxg4 $6 Qxg4 21. bxa6 Bd4 $11) 20... Qe5 {[%emt 0:14:55] aiming for ...Bxb5.} 21. Rb1 {[%emt 0:17:45]} (21. Bf4 $16 Bxb5 22. Bxe5 Bxf1 23. Bxg7 (23. Rxf1 Nxe5 24. Rxa7 Bd4 $11) 23... Kxg7 24. Bxf1 (24. Rxf1 b5 $16)) 21... Bb7 $1 $11 {[%emt 0:10:50] Hoping for ...Bxe4.} (21... Qh5 $2 22. h3 (22. Rxa6 $2 Qxh2#) 22... Nxf2 23. Nxc5 (23. Nxf2 Bxf2+ 24. Kh2 Rxc1 $16) 23... Nxh3+ 24. Bxh3 $18) 22. h3 {[%emt 0:03:33]} Nxf2 $1 {[%emt 0:07:15]} 23. Nxf2 {[%emt 0:05:24]} (23. Nxc5 Qxc5 24. Bxb7 Ne4+ (24... Nxh3+ $2 25. Kg2 $18) 25. Kh2 Qc2+ 26. Qg2 Qxb1 $17 (26... Qxa4 27. Bxe4 Rfe8 28. Bd3 $15)) 23... Bxg2 {[%emt 0:00:17]} (23... Qxg3 24. Rg4 Bxf2+ 25. Qxf2 Qxf2+ 26. Kxf2 Rc2+ (26... h5 27. Rg3 $16) 27. Kg1 $14) 24. Kxg2 {[%emt 0:00:45]} Qd5+ {[%emt 0:00:01]} 25. Kh2 {[%emt 0:00:07] And now Rb2 would win.} Rfe8 $2 {[%emt 0:08:47][%mdl 8192] A mistake that costs the game.} (25... Bxf2 $1 $11 {and Black stays safe.} 26. Qxf2 Qd3) 26. Rb2 $18 {[%emt 0:03:01]} (26. Rxa7 Bxf2 27. Qxf2 Re1 28. Qxe1 Rc2+ $15) 26... h5 {[%emt 0:06:18]} 27. Qd3 {[%emt 0:00:10]} (27. Rxa7 Bd4 28. Qd1 Rc4 $11) 27... Qb7 {[%emt 0:01:20] Threatens to win with ...Bxf2.} 28. Ne4 {[%emt 0:03:06]} Bg1+ {[%emt 0:02:03]} 29. Kxg1 {[%emt 0:00:06]} Rxc1+ {[%emt 0:00:01]} 30. Kh2 {[%emt 0:00:37]} f5 {[%emt 0:02:44]} 31. Qe3 {[%emt 0:00:06]} Qc8 {[%emt 0:01:00] ...Rc2+ would now be deadly.} 32. Qb3+ {[%emt 0:03:04]} Kh8 {[%emt 0:00:01] [#]} 33. Nf2 {[%emt 0:00:43][%cal Ob3f7] Black must now prevent Qf7!} Ree1 {[%emt 0:00:52]} 34. Qf3 {[%emt 0:02:39] Repels Qa8} ({Not} 34. Rxa7 h4 35. Qf3 (35. gxh4 $2 {too greedy.} Qb8+ 36. Qg3 Qxa7 $19) 35... hxg3+ 36. Qxg3 Rg1 $18) 34... g6 {[%emt 0:00:37]} (34... Qd7 $142 35. Qxh5+ Kg8) 35. Rxa7 {[%emt 0:00:13] Qf4 would kill now.} Qe8 {[%emt 0:01:58]} 36. Qf4 {[%emt 0:00:47]} Qf8 {[%emt 0:01:04]} 37. Qd4+ {[%emt 0:00:21]} Kg8 {[%emt 0:00:03]} 38. Qd7 {[%emt 0:00:20] Weighted Error Value: White=0.09 (flawless) /Black=0.43.  Loses game:     	---       	Black=1      Mistake:       	White=1     	Black=2      Inaccurate:     	White=1     	Black=2      OK:         	White=14    	Black=7      Best:        	White=3     	Black=4      Strong:       	White=1     	Black=3} 1-0

[Event "EYCC O18-ch 2024"]
[Site "Prague"]
[Date "2024.08.30"]
[Round "8.3"]
[White "Chyzy, Jakub"]
[Black "Backiel, Hubert"]
[Result "0-1"]
[ECO "C26"]
[WhiteElo "2368"]
[BlackElo "2216"]
[Annotator "RC"]
[PlyCount "64"]
[EventDate "2024.08.19"]
[EventType "swiss"]
[EventCountry "CZE"]
[SourceTitle "playchess.com"]
[Source "ChessBase"]
[SourceQuality "1"]
[TimeControl "5400+30"]

1. e4 {[%emt 0:00:01]} e5 {[%emt 0:00:05]} 2. Nc3 {[%emt 0:00:17]} Nf6 {[%emt 0:00:09]} 3. d4 {[%emt 0:00:07]} exd4 {[%emt 0:00:48]} 4. Qxd4 {[%emt 0:00:01]} Nc6 {[%emt 0:00:24]} 5. Qd3 {[%emt 0:00:10]} Bc5 {[%emt 0:06:56]} 6. Bf4 {[%emt 0:02:10]} O-O {[%emt 0:03:00]} 7. O-O-O {[%emt 0:03:52]} Ng4 {[%emt 0:12:54]} 8. Nh3 {[%emt 0:07:56]} Nxf2 {[%emt 0:02:16]} 9. Nxf2 {[%emt 0:00:59]} Bxf2 {[%emt 0:00:04]} 10. e5 {[%emt 0:25:32]} Bd4 {[%emt 0:13:49]} 11. Qg3 {[%emt 0:05:40]} Bxc3 {[%emt 0:09:28]} 12. Qxc3 {[%emt 0:10:47]} Qe7 {[%emt 0:09:28]} 13. h4 {[%emt 0:01:31]} Re8 {[%emt 0:04:15]} 14. Bc4 {[%emt 0:00:42]} d5 {[%emt 0:05:52]} 15. exd6 {[%emt 0:22:01]} cxd6 {[%emt 0:00:14]} 16. Rhe1 {[%emt 0:00:10]} Be6 {[%emt 0:01:52]} 17. Bxe6 {[%emt 0:01:08]} fxe6 {[%emt 0:00:10]} 18. Bxd6 {[%emt 0:00:12]} Qxh4 {[%emt 0:00:43]} 19. Qb3 {[%emt 0:00:22]} Rad8 {[%emt 0:03:21]} 20. g3 {[%emt 0:13:30]} Qg5+ {[%emt 0:06:29]} 21. Kb1 {[%emt 0:00:17]} Qf6 {[%emt 0:01:31]} 22. a3 {[%emt 0:03:21]} Rd7 {[%emt 0:10:14]} 23. Bf4 {[%emt 0:00:10]} Qe7 {[%emt 0:00:48]} 24. Rd3 {[%emt 0:00:28]} Rxd3 {[%emt 0:01:44]} 25. Qxd3 {[%emt 0:00:05]} e5 {[%emt 0:00:16]} 26. Be3 {[%emt 0:00:05]} e4 {[%emt 0:00:59]} 27. Qd5+ {[%emt 0:00:13]} Qf7 {[%emt 0:00:05]} 28. Qg5 {[%emt 0:00:44]} Ne5 {[%emt 0:01:06]} 29. Rh1 {[%emt 0:01:57]} h6 {[%emt 0:00:50]} 30. Qh4 {[%emt 0:00:27]} Nc4 {[%emt 0:00:29]} 31. Bd4 {[%emt 0:00:33]} Nd2+ {[%emt 0:00:34]} 32. Ka1 {[%emt 0:00:21]} Nf3 {[%emt 0:00:05]} 0-1

[Event "EYCC O18-ch 2024"]
[Site "Prague"]
[Date "2024.08.30"]
[Round "8.4"]
[White "Elmi, Saad Abobaker"]
[Black "Rozen, Eytan"]
[Result "1/2-1/2"]
[ECO "E73"]
[WhiteElo "2383"]
[BlackElo "2478"]
[Annotator "TA"]
[PlyCount "73"]
[EventDate "2024.08.19"]
[EventType "swiss"]
[EventCountry "CZE"]
[SourceTitle "playchess.com"]
[Source "ChessBase"]
[SourceQuality "1"]
[TimeControl "5400+30"]

{[%evp 12,73,52,43,61,37,43,30,41,37,40,25,31,28,43,35,72,26,22,13,34,23,20,18,20,20,33,11,14,21,26,17,16,15,21,21,17,0,38,39,40,0,0,0,0,0,0,0,0,0,0,0,0,0,0,0,0,0,0,0,0,0,0,0]} 1. d4 {[%emt 0:00:03]} Nf6 {[%emt 0:00:43]} 2. c4 {[%emt 0:00:24]} g6 {[%emt 0:00:18]} 3. Nc3 {[%emt 0:00:06]} Bg7 {[%emt 0:00:05]} 4. e4 {[%emt 0:00:12]} d6 {[%emt 0:00:07]} 5. Be2 {[%emt 0:00:24]} O-O {[%emt 0:00:21]} 6. Be3 {[%emt 0:00:10]} c5 {[%emt 0:01:27]} 7. d5 {[%emt 0:00:16]} Qb6 {[%emt 0:00:30]} 8. Rb1 {[%emt 0:04:50]} Qa5 {[%emt 0:00:41]} 9. Bd2 {[%emt 0:02:55]} e6 {[%emt 0:00:24] White has an edge.} 10. Nf3 {[%emt 0:00:31]} exd5 {[%emt 0:00:38]} 11. exd5 {[%emt 0:03:55]} Qb6 {[%emt 0:04:22]} 12. b3 {[%emt 0:02:28]} Bf5 {[%emt 0:00:06]} 13. Rc1 {[%emt 0:00:14]} Ne4 {[%emt 0:00:43]} 14. Nh4 {[%emt 0:03:45]} (14. Nxe4 $16 {Nc3 is the strong threat.} Bxe4 15. Ng5) 14... Nxc3 $11 {[%emt 0:04:33]} 15. Bxc3 {[%emt 0:00:16] [#] Hoping for Nxf5.} Bc8 {[%emt 0:05:11]} 16. Bxg7 {[%emt 0:00:23]} Kxg7 {[%emt 0:00:02]} 17. O-O {[%emt 0:00:29]} Qd8 {[%emt 0:05:32]} 18. Nf3 {[%emt 0:01:08][%cal Bh4f3,Bf3d4,Bd4e2,Be2c3][%mdl 32]} Bg4 {[%emt 0:06:32] [#]} 19. Nd4 $1 {[%emt 0:01:04]} Bxe2 {[%emt 0:07:02]} (19... Bd7 20. Nc2) 20. Nxe2 {[%emt 0:00:07]} Re8 {[%emt 0:01:07]} 21. Nc3 {[%emt 0:01:44]} Nd7 {[%emt 0:01:23]} 22. Re1 {[%emt 0:03:38]} Rxe1+ {[%emt 0:04:22]} 23. Qxe1 {[%emt 0:00:06]} Nf6 {[%emt 0:00:41]} 24. Qd2 {[%emt 0:03:22]} Qe7 {[%emt 0:07:35]} 25. Re1 {[%emt 0:00:28]} Qd7 {[%emt 0:00:06]} 26. Ne4 {[%emt 0:00:53]} Nxe4 {[%emt 0:08:47] The position is equal.} 27. Rxe4 {[%emt 0:00:06][%mdl 4096] Endgame. KQR-KQR} Re8 {[%emt 0:00:46]} (27... b5 {with more complications.} 28. Rh4 h5 29. cxb5 Qxb5 30. g4 Qb4) 28. Qe3 {[%emt 0:01:46]} Rxe4 {[%emt 0:00:41]} 29. Qxe4 {[%emt 0:00:02] KQ-KQ} Qd8 {[%emt 0:02:28]} 30. g3 {[%emt 0:04:57]} Qf6 {[%emt 0:02:34]} 31. Kg2 {[%emt 0:00:35]} h5 {[%emt 0:01:07]} 32. h4 {[%emt 0:02:12]} Kf8 {[%emt 0:02:28]} 33. Qe3 {[%emt 0:05:54]} Qf5 {[%emt 0:06:26]} 34. Qc3 {[%emt 0:05:47]} Qe4+ {[%emt 0:00:49]} 35. Kh2 {[%emt 0:02:37]} Qf5 {[%emt 0:02:15] Dodges Qf6} 36. Kg2 {[%emt 0:00:17]} Qe4+ {[%emt 0:00:49]} 37. Kh2 {[%emt 0:00:08] Weighted Error Value: White=0.07 (flawless) /Black=0.05 (flawless) .  Mistake:       	White=1     	---        Inaccurate:     	White=1     	Black=2      OK:         	White=8     	Black=16} 1/2-1/2